[Event "Late-Titled-Tuesday-Blitz-August-29-2023"]
[Site "Chess.com"]
[Date "2023.08.29"]
[Round "11"]
[White "PepeCuenca"]
[Black "slidingknight2775"]
[Result "1-0"]
[WhiteElo "2708"]
[BlackElo "2536"]
[TimeControl "180+1"]
[EndTime "16:03:18 PDT"]
[Termination "PepeCuenca won on time"]

1. c4 {[%clk 0:03:00.9]} 1... e6 {[%clk 0:02:58.6]} 2. Nf3 {[%clk 0:03:00.1]}
2... Nf6 {[%clk 0:02:58]} 3. d4 {[%clk 0:02:58.8]} 3... d5 {[%clk 0:02:58]} 4.
Nc3 {[%clk 0:02:59.4]} 4... a6 {[%clk 0:02:57.5]} 5. c5 {[%clk 0:02:56.3]} 5...
b6 {[%clk 0:02:57]} 6. cxb6 {[%clk 0:02:57.2]} 6... cxb6 {[%clk 0:02:57.6]} 7.
Bf4 {[%clk 0:02:57.1]} 7... Bd6 {[%clk 0:02:57]} 8. e3 {[%clk 0:02:47.3]} 8...
Bb7 {[%clk 0:02:53]} 9. Bd3 {[%clk 0:02:46.8]} 9... O-O {[%clk 0:02:51.2]} 10.
O-O {[%clk 0:02:46.6]} 10... h6 {[%clk 0:02:50.8]} 11. Qb3 {[%clk 0:02:40.8]}
11... Bxf4 {[%clk 0:02:30.2]} 12. exf4 {[%clk 0:02:40.4]} 12... Ne4 {[%clk
0:02:30.4]} 13. Rfe1 {[%clk 0:02:36.9]} 13... Nxc3 {[%clk 0:02:24]} 14. Qxc3
{[%clk 0:02:33.7]} 14... Nc6 {[%clk 0:02:18.2]} 15. Rad1 {[%clk 0:02:04.2]}
15... Qf6 {[%clk 0:02:05.4]} 16. g3 {[%clk 0:02:04]} 16... Rac8 {[%clk
0:02:00.2]} 17. Qd2 {[%clk 0:02:04]} 17... Rfd8 {[%clk 0:01:42.8]} 18. Bb1
{[%clk 0:02:02.7]} 18... Na5 {[%clk 0:01:28.8]} 19. b3 {[%clk 0:01:55.4]} 19...
Nc6 {[%clk 0:01:24.4]} 20. a3 {[%clk 0:01:42.5]} 20... Na5 {[%clk 0:01:10.4]}
21. Qb4 {[%clk 0:01:39.8]} 21... Rc6 {[%clk 0:00:30]} 22. h4 {[%clk 0:01:30.7]}
22... Rcd6 {[%clk 0:00:21.3]} 23. Kg2 {[%clk 0:01:29]} 23... Ba8 {[%clk
0:00:20.8]} 24. Re3 {[%clk 0:01:25]} 24... Nb7 {[%clk 0:00:20]} 25. Ne5 {[%clk
0:01:22.9]} 25... Rc8 {[%clk 0:00:16.4]} 26. h5 {[%clk 0:01:16.2]} 26... a5
{[%clk 0:00:16.2]} 27. Qd2 {[%clk 0:01:16.1]} 27... Nd8 {[%clk 0:00:15.8]} 28.
Qd3 {[%clk 0:01:15.6]} 28... Kf8 {[%clk 0:00:12.6]} 29. Rf3 {[%clk 0:01:14.1]}
29... Nc6 {[%clk 0:00:07.2]} 30. g4 {[%clk 0:01:12.3]} 30... Rdd8 {[%clk
0:00:06.2]} 31. Qh7 {[%clk 0:00:55]} 31... Ke7 {[%clk 0:00:05.2]} 32. Qd3 {[%clk
0:00:51.5]} 32... Kf8 {[%clk 0:00:04.6]} 33. Re1 {[%clk 0:00:50.7]} 33... Bb7
{[%clk 0:00:03.2]} 34. Qe3 {[%clk 0:00:47.9]} 34... Ba8 {[%clk 0:00:02.7]} 35.
g5 {[%clk 0:00:47.3]} 35... Qe7 {[%clk 0:00:02]} 36. Rg3 {[%clk 0:00:41.7]}
36... Nxe5 {[%clk 0:00:02.3]} 37. fxe5 {[%clk 0:00:36.9]} 37... hxg5 {[%clk
0:00:02.8]} 38. Rxg5 {[%clk 0:00:37.1]} 38... Rc3 {[%clk 0:00:03.2]} 39. Qf4
{[%clk 0:00:33.8]} 39... Rxb3 {[%clk 0:00:03.2]} 40. Qg4 {[%clk 0:00:28.5]}
40... Rb2 {[%clk 0:00:01.9]} 41. Rxg7 {[%clk 0:00:26.4]} 41... Ke8 {[%clk
0:00:02.4]} 42. Bg6 {[%clk 0:00:24.2]} 1-0

[Event "Late-Titled-Tuesday-Blitz-August-29-2023"]
[Site "Chess.com"]
[Date "2023.08.29"]
[Round "11"]
[White "ural58"]
[Black "rachidhuilda"]
[Result "1-0"]
[WhiteElo "2520"]
[BlackElo "2372"]
[TimeControl "180+1"]
[EndTime "16:03:27 PDT"]
[Termination "ural58 won by resignation"]

1. e4 {[%clk 0:02:52.5]} 1... d5 {[%clk 0:02:57.4]} 2. exd5 {[%clk 0:02:50.8]}
2... Qxd5 {[%clk 0:02:56.4]} 3. Nc3 {[%clk 0:02:50.7]} 3... Qa5 {[%clk
0:02:56.7]} 4. b4 {[%clk 0:02:48.6]} 4... Qxb4 {[%clk 0:02:55.9]} 5. Rb1 {[%clk
0:02:48.7]} 5... Qd6 {[%clk 0:02:55.3]} 6. d4 {[%clk 0:02:45.8]} 6... Nf6 {[%clk
0:02:54.7]} 7. Nb5 {[%clk 0:02:40.8]} 7... Qd8 {[%clk 0:02:52.7]} 8. Bf4 {[%clk
0:02:37.7]} 8... Na6 {[%clk 0:02:52.8]} 9. c4 {[%clk 0:02:04.6]} 9... e6 {[%clk
0:02:43.8]} 10. c5 {[%clk 0:01:59.7]} 10... Be7 {[%clk 0:02:36.5]} 11. Nf3
{[%clk 0:01:59]} 11... Nd5 {[%clk 0:02:09.8]} 12. Be5 {[%clk 0:01:52.8]} 12...
O-O {[%clk 0:02:09]} 13. Bd3 {[%clk 0:01:52]} 13... c6 {[%clk 0:02:02.5]} 14.
Nd6 {[%clk 0:01:39.6]} 14... f6 {[%clk 0:01:53.4]} 15. Bg3 {[%clk 0:01:38.8]}
15... e5 {[%clk 0:01:45.3]} 16. Qc2 {[%clk 0:01:28.7]} 16... Bxd6 {[%clk
0:01:22.3]} 17. Bxh7+ {[%clk 0:01:27.9]} 17... Kh8 {[%clk 0:01:22.2]} 18. cxd6
{[%clk 0:01:28]} 18... Qe8 {[%clk 0:01:07.3]} 19. Bg6 {[%clk 0:01:24.2]} 19...
Qe6 {[%clk 0:01:05.1]} 20. dxe5 {[%clk 0:01:20.7]} 20... fxe5 {[%clk 0:01:01]}
21. O-O {[%clk 0:01:18.8]} 21... Nf4 {[%clk 0:00:47.9]} 22. Bxf4 {[%clk
0:01:18.1]} 22... Rxf4 {[%clk 0:00:48.1]} 23. Ng5 {[%clk 0:01:13.6]} 23... Qg4
{[%clk 0:00:40.2]} 24. Nf7+ {[%clk 0:01:11]} 24... Rxf7 {[%clk 0:00:31.7]} 25.
Bxf7 {[%clk 0:01:10.2]} 25... Bf5 {[%clk 0:00:32.2]} 26. Qd1 {[%clk 0:01:05]}
26... Qg5 {[%clk 0:00:20.5]} 27. Rxb7 {[%clk 0:01:01.7]} 27... Rd8 {[%clk
0:00:18.6]} 28. Qh5+ {[%clk 0:01:01.3]} 28... Qxh5 {[%clk 0:00:18.3]} 29. Bxh5
{[%clk 0:01:01.4]} 29... Nc5 {[%clk 0:00:17.9]} 30. Rf7 {[%clk 0:00:57.4]} 30...
g6 {[%clk 0:00:15.7]} 31. Rd1 {[%clk 0:00:46.1]} 31... Ne6 {[%clk 0:00:12.9]}
32. Bf3 {[%clk 0:00:35.4]} 32... e4 {[%clk 0:00:11.7]} 33. Be2 {[%clk
0:00:32.7]} 33... c5 {[%clk 0:00:10.5]} 34. g4 {[%clk 0:00:20.8]} 34... Nd4
{[%clk 0:00:11]} 35. Rxd4 {[%clk 0:00:20.7]} 35... cxd4 {[%clk 0:00:11.2]} 36.
gxf5 {[%clk 0:00:21.3]} 36... gxf5 {[%clk 0:00:10.7]} 37. d7 {[%clk 0:00:21.6]}
37... d3 {[%clk 0:00:09.4]} 38. Bd1 {[%clk 0:00:19.4]} 38... Kg8 {[%clk
0:00:09.9]} 39. Re7 {[%clk 0:00:19.1]} 39... Kf8 {[%clk 0:00:10.2]} 40. Re5
{[%clk 0:00:19.1]} 40... Rxd7 {[%clk 0:00:09]} 41. Rxf5+ {[%clk 0:00:19.7]}
41... Kg7 {[%clk 0:00:09.4]} 42. Re5 {[%clk 0:00:19.2]} 42... Rd4 {[%clk
0:00:09.2]} 43. Kf1 {[%clk 0:00:18.6]} 43... Ra4 {[%clk 0:00:08.9]} 44. Ke1
{[%clk 0:00:17.9]} 44... Kf6 {[%clk 0:00:09.4]} 45. Re8 {[%clk 0:00:17.8]} 45...
Kf5 {[%clk 0:00:09.8]} 46. Bxa4 {[%clk 0:00:17.8]} 1-0

[Event "Late-Titled-Tuesday-Blitz-August-29-2023"]
[Site "Chess.com"]
[Date "2023.08.29"]
[Round "11"]
[White "Mourinho_Jose"]
[Black "Meri-Arabidze"]
[Result "0-1"]
[WhiteElo "2509"]
[BlackElo "2616"]
[TimeControl "180+1"]
[EndTime "16:03:43 PDT"]
[Termination "Meri-Arabidze won on time"]

1. Nf3 {[%clk 0:02:59.9]} 1... c5 {[%clk 0:03:00.1]} 2. g3 {[%clk 0:02:59.5]}
2... b6 {[%clk 0:03:00.5]} 3. Bg2 {[%clk 0:02:58.5]} 3... Bb7 {[%clk 0:03:01.1]}
4. O-O {[%clk 0:02:57.5]} 4... g6 {[%clk 0:03:01.1]} 5. d4 {[%clk 0:02:57.1]}
5... cxd4 {[%clk 0:03:00.9]} 6. Qxd4 {[%clk 0:02:57.2]} 6... Nf6 {[%clk
0:03:01.1]} 7. c4 {[%clk 0:02:56.7]} 7... Bg7 {[%clk 0:03:01.2]} 8. Nc3 {[%clk
0:02:57.2]} 8... d6 {[%clk 0:03:01.5]} 9. Bg5 {[%clk 0:02:50.7]} 9... Nbd7
{[%clk 0:03:01.1]} 10. Qd2 {[%clk 0:02:45]} 10... Rc8 {[%clk 0:02:58.2]} 11. b3
{[%clk 0:02:36]} 11... a6 {[%clk 0:02:46.1]} 12. Rac1 {[%clk 0:02:30]} 12... h6
{[%clk 0:02:45]} 13. Be3 {[%clk 0:02:24.3]} 13... Nc5 {[%clk 0:02:31.7]} 14. b4
{[%clk 0:02:09.4]} 14... Ncd7 {[%clk 0:02:24.3]} 15. Nd5 {[%clk 0:02:05.2]}
15... Ng4 {[%clk 0:02:01.2]} 16. Nd4 {[%clk 0:01:37.5]} 16... Nxe3 {[%clk
0:01:59.6]} 17. Qxe3 {[%clk 0:01:38.4]} 17... Ne5 {[%clk 0:01:54.5]} 18. Nf6+
{[%clk 0:01:02.1]} 18... Bxf6 {[%clk 0:01:50.2]} 19. Bxb7 {[%clk 0:01:03]} 19...
Rc7 {[%clk 0:01:37.9]} 20. Bxa6 {[%clk 0:00:54.9]} 20... Kf8 {[%clk 0:01:37.5]}
21. Bb5 {[%clk 0:00:38.1]} 21... h5 {[%clk 0:01:37.6]} 22. Nf3 {[%clk
0:00:36.2]} 22... Ng4 {[%clk 0:01:33]} 23. Qxb6 {[%clk 0:00:35.8]} 23... Kg7
{[%clk 0:01:30.7]} 24. c5 {[%clk 0:00:31.8]} 24... h4 {[%clk 0:01:15.3]} 25.
Rcd1 {[%clk 0:00:21.5]} 25... hxg3 {[%clk 0:01:11.2]} 26. hxg3 {[%clk
0:00:19.9]} 26... Qg8 {[%clk 0:00:57.8]} 27. Kg2 {[%clk 0:00:20.2]} 27... Rc8
{[%clk 0:00:50.5]} 28. cxd6 {[%clk 0:00:19.7]} 28... exd6 {[%clk 0:00:50.5]} 29.
Qxd6 {[%clk 0:00:19.2]} 29... Rd8 {[%clk 0:00:45]} 30. Qf4 {[%clk 0:00:18.2]}
30... Rxd1 {[%clk 0:00:40.5]} 31. Rxd1 {[%clk 0:00:17.4]} 31... Qc8 {[%clk
0:00:32.4]} 32. Bd7 {[%clk 0:00:14.6]} 32... Qc2 {[%clk 0:00:23.8]} 33. Rd2
{[%clk 0:00:13.5]} 33... Qc1 {[%clk 0:00:21.6]} 34. Nh4 {[%clk 0:00:04.7]} 34...
Bxh4 {[%clk 0:00:19.2]} 35. Qxg4 {[%clk 0:00:04.7]} 35... Qxd2 {[%clk
0:00:17.9]} 36. gxh4 {[%clk 0:00:03.8]} 36... Qd6 {[%clk 0:00:16.4]} 37. Bb5
{[%clk 0:00:03]} 37... Rh5 {[%clk 0:00:15.7]} 38. Bd3 {[%clk 0:00:02.4]} 38...
Qf6 {[%clk 0:00:15.8]} 39. Qg3 {[%clk 0:00:02]} 39... Rxh4 {[%clk 0:00:15.6]}
40. b5 {[%clk 0:00:01.7]} 40... Rh5 {[%clk 0:00:14.6]} 41. Kf1 {[%clk
0:00:02.1]} 41... Rg5 {[%clk 0:00:14.8]} 42. Qf3 {[%clk 0:00:02.1]} 42... Qa1+
{[%clk 0:00:14.6]} 0-1

[Event "Late-Titled-Tuesday-Blitz-August-29-2023"]
[Site "Chess.com"]
[Date "2023.08.29"]
[Round "11"]
[White "simplerXiao"]
[Black "Jahonas"]
[Result "0-1"]
[WhiteElo "2521"]
[BlackElo "2470"]
[TimeControl "180+1"]
[EndTime "16:03:43 PDT"]
[Termination "Jahonas won by checkmate"]

1. e4 {[%clk 0:03:00.9]} 1... c6 {[%clk 0:03:00]} 2. d4 {[%clk 0:02:57]} 2... d5
{[%clk 0:02:59.6]} 3. Nc3 {[%clk 0:02:56.3]} 3... dxe4 {[%clk 0:02:59.4]} 4.
Nxe4 {[%clk 0:02:56.1]} 4... Bf5 {[%clk 0:02:59.7]} 5. Ng3 {[%clk 0:02:55.5]}
5... Bg6 {[%clk 0:03:00.1]} 6. Nf3 {[%clk 0:02:55.1]} 6... Nd7 {[%clk
0:03:00.1]} 7. h4 {[%clk 0:02:54.7]} 7... h6 {[%clk 0:03:00]} 8. h5 {[%clk
0:02:55.6]} 8... Bh7 {[%clk 0:02:59.4]} 9. Bd3 {[%clk 0:02:54.6]} 9... Bxd3
{[%clk 0:02:59.2]} 10. Qxd3 {[%clk 0:02:55.5]} 10... Ngf6 {[%clk 0:02:59.3]} 11.
Bf4 {[%clk 0:02:54.5]} 11... Qa5+ {[%clk 0:02:56.5]} 12. Bd2 {[%clk 0:02:52.1]}
12... Qc7 {[%clk 0:02:56.1]} 13. O-O-O {[%clk 0:02:51.2]} 13... e6 {[%clk
0:02:56.4]} 14. Kb1 {[%clk 0:02:49.8]} 14... Bd6 {[%clk 0:02:55.4]} 15. Ne4
{[%clk 0:02:46.7]} 15... Nxe4 {[%clk 0:02:54.3]} 16. Qxe4 {[%clk 0:02:47]} 16...
Nf6 {[%clk 0:02:54.7]} 17. Qe2 {[%clk 0:02:47.6]} 17... O-O-O {[%clk 0:02:53.4]}
18. c4 {[%clk 0:02:44.6]} 18... c5 {[%clk 0:02:52.7]} 19. Bc3 {[%clk 0:02:44.2]}
19... a6 {[%clk 0:02:50.2]} 20. dxc5 {[%clk 0:02:34.2]} 20... Qxc5 {[%clk
0:02:47.2]} 21. Bd4 {[%clk 0:02:33.3]} 21... Qf5+ {[%clk 0:02:45.1]} 22. Ka1
{[%clk 0:02:32.3]} 22... Bc7 {[%clk 0:02:35.2]} 23. Bc3 {[%clk 0:01:48.8]} 23...
Rxd1+ {[%clk 0:02:29.7]} 24. Rxd1 {[%clk 0:01:47.1]} 24... Qxh5 {[%clk
0:02:21.5]} 25. Qe3 {[%clk 0:01:46.3]} 25... Rd8 {[%clk 0:02:05.6]} 26. Rxd8+
{[%clk 0:01:43.8]} 26... Kxd8 {[%clk 0:01:56.8]} 27. a3 {[%clk 0:01:43.1]} 27...
Qh1+ {[%clk 0:01:50.6]} 28. Ne1 {[%clk 0:01:42.3]} 28... Qf1 {[%clk 0:01:46.5]}
29. Qd4+ {[%clk 0:01:34.5]} 29... Kc8 {[%clk 0:01:40.9]} 30. Ka2 {[%clk
0:01:32.7]} 30... Nd7 {[%clk 0:01:37]} 31. g3 {[%clk 0:01:13.5]} 31... Be5
{[%clk 0:01:33.7]} 32. Qe4 {[%clk 0:00:57.9]} 32... Bxc3 {[%clk 0:01:27.7]} 33.
bxc3 {[%clk 0:00:58.8]} 33... Qxf2+ {[%clk 0:01:26.4]} 34. Kb1 {[%clk
0:00:58.2]} 34... Qxg3 {[%clk 0:01:24.9]} 35. Nd3 {[%clk 0:00:54.7]} 35... Qd6
{[%clk 0:01:19.9]} 36. Kb2 {[%clk 0:00:49.9]} 36... Nc5 {[%clk 0:01:13.5]} 37.
Nxc5 {[%clk 0:00:47.7]} 37... Qxc5 {[%clk 0:01:14.4]} 38. Qh7 {[%clk 0:00:47.5]}
38... Qf2+ {[%clk 0:01:10.2]} 39. Kb3 {[%clk 0:00:46.8]} 39... Qf6 {[%clk
0:01:09.5]} 40. Qg8+ {[%clk 0:00:46.2]} 40... Kc7 {[%clk 0:01:09.2]} 41. c5
{[%clk 0:00:45.5]} 41... Qe7 {[%clk 0:00:56.6]} 42. Qxg7 {[%clk 0:00:45.4]}
42... h5 {[%clk 0:00:49.8]} 43. Qe5+ {[%clk 0:00:45]} 43... Kc8 {[%clk
0:00:46.8]} 44. Qxh5 {[%clk 0:00:43.6]} 44... e5 {[%clk 0:00:46.7]} 45. Kb4
{[%clk 0:00:40.1]} 45... b6 {[%clk 0:00:43.9]} 46. Qf5+ {[%clk 0:00:40.1]} 46...
Kc7 {[%clk 0:00:41.5]} 47. Kb3 {[%clk 0:00:29.4]} 47... Qe6+ {[%clk 0:00:40.1]}
48. Qxe6 {[%clk 0:00:29.5]} 48... fxe6 {[%clk 0:00:41]} 49. cxb6+ {[%clk
0:00:29.7]} 49... Kxb6 {[%clk 0:00:41.2]} 50. Kb4 {[%clk 0:00:28.3]} 50... a5+
{[%clk 0:00:39.5]} 51. Kc4 {[%clk 0:00:26.4]} 51... Kc6 {[%clk 0:00:39.7]} 52.
a4 {[%clk 0:00:25.2]} 52... Kd6 {[%clk 0:00:34.6]} 53. Kb5 {[%clk 0:00:20]}
53... e4 {[%clk 0:00:33.5]} 54. Kc4 {[%clk 0:00:20.7]} 54... e5 {[%clk
0:00:32.2]} 55. Kb3 {[%clk 0:00:20.4]} 55... Kc5 {[%clk 0:00:32]} 56. Kc2 {[%clk
0:00:21]} 56... Kc4 {[%clk 0:00:31.8]} 57. Kd2 {[%clk 0:00:21.7]} 57... e3+
{[%clk 0:00:26.8]} 58. Kxe3 {[%clk 0:00:21.8]} 58... Kxc3 {[%clk 0:00:27.5]} 59.
Ke4 {[%clk 0:00:22.7]} 59... Kb4 {[%clk 0:00:28.1]} 60. Kxe5 {[%clk 0:00:23.6]}
60... Kxa4 {[%clk 0:00:28.7]} 61. Kd4 {[%clk 0:00:24.3]} 61... Kb3 {[%clk
0:00:29.4]} 62. Kd3 {[%clk 0:00:25.2]} 62... a4 {[%clk 0:00:29.6]} 63. Kd2
{[%clk 0:00:26]} 63... Kb2 {[%clk 0:00:30.2]} 64. Kd3 {[%clk 0:00:26.9]} 64...
a3 {[%clk 0:00:30.9]} 65. Kd4 {[%clk 0:00:27.8]} 65... a2 {[%clk 0:00:31.7]} 66.
Kc4 {[%clk 0:00:28.7]} 66... a1=Q {[%clk 0:00:32.6]} 67. Kb4 {[%clk 0:00:29.4]}
67... Qa3+ {[%clk 0:00:32.9]} 68. Kc4 {[%clk 0:00:30.3]} 68... Qa4+ {[%clk
0:00:33.1]} 69. Kd3 {[%clk 0:00:30.4]} 69... Qf4 {[%clk 0:00:32]} 70. Ke2 {[%clk
0:00:31.1]} 70... Kc3 {[%clk 0:00:30.6]} 71. Ke1 {[%clk 0:00:30.6]} 71... Qd2+
{[%clk 0:00:30.7]} 72. Kf1 {[%clk 0:00:30.6]} 72... Kd3 {[%clk 0:00:31.2]} 73.
Kg1 {[%clk 0:00:31.5]} 73... Ke3 {[%clk 0:00:31.6]} 74. Kh1 {[%clk 0:00:32.4]}
74... Kf3 {[%clk 0:00:32.1]} 75. Kg1 {[%clk 0:00:33.2]} 75... Qg2# {[%clk
0:00:32.4]} 0-1

[Event "Late-Titled-Tuesday-Blitz-August-29-2023"]
[Site "Chess.com"]
[Date "2023.08.29"]
[Round "11"]
[White "Orest_Vovk"]
[Black "b_6"]
[Result "1-0"]
[WhiteElo "2599"]
[BlackElo "2470"]
[TimeControl "180+1"]
[EndTime "16:04:03 PDT"]
[Termination "Orest_Vovk won on time"]

1. e4 {[%clk 0:03:00.9]} 1... c5 {[%clk 0:02:59.3]} 2. Nf3 {[%clk 0:03:00.6]}
2... g6 {[%clk 0:02:59.3]} 3. Nc3 {[%clk 0:02:59.2]} 3... Bg7 {[%clk 0:02:58.6]}
4. h3 {[%clk 0:02:52.5]} 4... d6 {[%clk 0:02:51.3]} 5. Bb5+ {[%clk 0:02:50.2]}
5... Bd7 {[%clk 0:02:50.1]} 6. Bxd7+ {[%clk 0:02:49.4]} 6... Qxd7 {[%clk
0:02:43.2]} 7. O-O {[%clk 0:02:50.3]} 7... Nc6 {[%clk 0:02:42.4]} 8. d3 {[%clk
0:02:50]} 8... Nf6 {[%clk 0:02:41.3]} 9. Bg5 {[%clk 0:02:49.3]} 9... O-O {[%clk
0:02:38.2]} 10. Qd2 {[%clk 0:02:48.3]} 10... Rab8 {[%clk 0:02:09.7]} 11. Bh6
{[%clk 0:02:27.7]} 11... b5 {[%clk 0:02:06.1]} 12. Bxg7 {[%clk 0:01:49.7]} 12...
Kxg7 {[%clk 0:02:05.9]} 13. Ne2 {[%clk 0:01:49.8]} 13... e5 {[%clk 0:01:46.8]}
14. Ng3 {[%clk 0:01:42.9]} 14... h6 {[%clk 0:01:35.5]} 15. Nh2 {[%clk
0:01:41.5]} 15... d5 {[%clk 0:01:29]} 16. f4 {[%clk 0:01:39.5]} 16... dxe4
{[%clk 0:01:21.3]} 17. fxe5 {[%clk 0:01:36.8]} 17... Qd4+ {[%clk 0:01:01.2]} 18.
Kh1 {[%clk 0:01:32.4]} 18... Qxe5 {[%clk 0:01:01.1]} 19. Rxf6 {[%clk 0:01:08.7]}
19... Qxf6 {[%clk 0:00:55.9]} 20. Ng4 {[%clk 0:01:02.9]} 20... Qg5 {[%clk
0:00:43.2]} 21. Qc3+ {[%clk 0:01:01.6]} 21... Nd4 {[%clk 0:00:24]} 22. Nxe4
{[%clk 0:01:01]} 22... b4 {[%clk 0:00:18.6]} 23. Qc4 {[%clk 0:00:50]} 23... Qh5
{[%clk 0:00:15.5]} 24. Nxc5 {[%clk 0:00:44.9]} 24... Ne6 {[%clk 0:00:15.5]} 25.
Nxe6+ {[%clk 0:00:40.5]} 25... fxe6 {[%clk 0:00:16.4]} 26. Qxe6 {[%clk 0:00:40]}
26... Rf7 {[%clk 0:00:16.8]} 27. Qd6 {[%clk 0:00:32]} 27... Rbf8 {[%clk
0:00:16]} 28. Qd4+ {[%clk 0:00:31.5]} 28... Kh7 {[%clk 0:00:15]} 29. Qxb4 {[%clk
0:00:29.2]} 29... Rf4 {[%clk 0:00:14.5]} 30. Qe7+ {[%clk 0:00:25.8]} 30... R8f7
{[%clk 0:00:14.8]} 31. Qe2 {[%clk 0:00:24.1]} 31... Rf2 {[%clk 0:00:10.7]} 32.
Qe6 {[%clk 0:00:17.2]} 32... Rf1+ {[%clk 0:00:08.8]} 33. Rxf1 {[%clk 0:00:15.8]}
33... Rxf1+ {[%clk 0:00:09.7]} 34. Kh2 {[%clk 0:00:16.4]} 34... Qf5 {[%clk
0:00:09.9]} 35. Qe7+ {[%clk 0:00:11]} 35... Qf7 {[%clk 0:00:09.1]} 36. Qxf7+
{[%clk 0:00:10.8]} 36... Rxf7 {[%clk 0:00:09.6]} 37. Kg3 {[%clk 0:00:10.4]}
37... Rc7 {[%clk 0:00:06.5]} 38. c4 {[%clk 0:00:09.9]} 38... Rb7 {[%clk
0:00:04]} 39. b3 {[%clk 0:00:09.8]} 39... a5 {[%clk 0:00:04.4]} 40. d4 {[%clk
0:00:09.1]} 40... a4 {[%clk 0:00:04.8]} 41. bxa4 {[%clk 0:00:08.9]} 41... Ra7
{[%clk 0:00:05.2]} 42. Ne5 {[%clk 0:00:08.6]} 42... Rxa4 {[%clk 0:00:05.2]} 43.
d5 {[%clk 0:00:09]} 43... Kg7 {[%clk 0:00:04.2]} 44. d6 {[%clk 0:00:08.6]} 44...
Kf6 {[%clk 0:00:03.7]} 45. d7 {[%clk 0:00:07.4]} 45... Ke7 {[%clk 0:00:03.5]}
46. Kf4 {[%clk 0:00:07.4]} 46... Rxa2 {[%clk 0:00:03]} 47. c5 {[%clk 0:00:05.4]}
47... Ra4+ {[%clk 0:00:03]} 48. Ke3 {[%clk 0:00:04.9]} 48... Ra3+ {[%clk
0:00:03.1]} 49. Kd4 {[%clk 0:00:05.3]} 49... Ra4+ {[%clk 0:00:03.5]} 50. Kd5
{[%clk 0:00:05.4]} 50... Ra5 {[%clk 0:00:02.6]} 51. Kc6 {[%clk 0:00:04.4]} 51...
Ra6+ {[%clk 0:00:01.8]} 52. Kb7 {[%clk 0:00:04.7]} 52... Ra1 {[%clk 0:00:01.8]}
53. c6 {[%clk 0:00:04.3]} 53... Rb1+ {[%clk 0:00:01.8]} 54. Kc7 {[%clk
0:00:04.7]} 1-0

[Event "Late-Titled-Tuesday-Blitz-August-29-2023"]
[Site "Chess.com"]
[Date "2023.08.29"]
[Round "11"]
[White "nihalsarin"]
[Black "dropstoneDP"]
[Result "1/2-1/2"]
[WhiteElo "3109"]
[BlackElo "2984"]
[TimeControl "180+1"]
[EndTime "16:04:04 PDT"]
[Termination "Game drawn by stalemate"]

1. g3 {[%clk 0:02:49.6]} 1... d5 {[%clk 0:02:59.6]} 2. Nf3 {[%clk 0:02:48.5]}
2... Nf6 {[%clk 0:02:59.8]} 3. Bg2 {[%clk 0:02:48.6]} 3... e6 {[%clk 0:03:00.7]}
4. O-O {[%clk 0:02:45.8]} 4... Be7 {[%clk 0:03:01.3]} 5. c4 {[%clk 0:02:45.8]}
5... O-O {[%clk 0:03:01.5]} 6. b3 {[%clk 0:02:46.3]} 6... c5 {[%clk 0:03:01.3]}
7. cxd5 {[%clk 0:02:46]} 7... exd5 {[%clk 0:03:02.2]} 8. d4 {[%clk 0:02:45.7]}
8... Ne4 {[%clk 0:03:02.6]} 9. Bb2 {[%clk 0:02:45.5]} 9... Nc6 {[%clk 0:03:03]}
10. dxc5 {[%clk 0:02:43]} 10... Bxc5 {[%clk 0:03:03.9]} 11. Nc3 {[%clk
0:02:42.4]} 11... Nxc3 {[%clk 0:03:04.2]} 12. Bxc3 {[%clk 0:02:43.3]} 12... d4
{[%clk 0:03:05.1]} 13. Bb2 {[%clk 0:02:43.1]} 13... Re8 {[%clk 0:03:02.6]} 14.
Rc1 {[%clk 0:02:43.2]} 14... Bb6 {[%clk 0:03:02.7]} 15. Qd2 {[%clk 0:02:36.4]}
15... Bf5 {[%clk 0:02:49.6]} 16. Rfd1 {[%clk 0:02:34.1]} 16... Be4 {[%clk
0:02:49.5]} 17. Nxd4 {[%clk 0:02:25.6]} 17... Bxg2 {[%clk 0:02:46.8]} 18. Kxg2
{[%clk 0:02:26.5]} 18... Bxd4 {[%clk 0:02:46.4]} 19. Bxd4 {[%clk 0:02:27.4]}
19... Qd5+ {[%clk 0:02:32.5]} 20. Kg1 {[%clk 0:02:27.7]} 20... Nxd4 {[%clk
0:02:18.1]} 21. Qxd4 {[%clk 0:02:28.6]} 21... Qxd4 {[%clk 0:02:18.2]} 22. Rxd4
{[%clk 0:02:29.5]} 22... Rxe2 {[%clk 0:02:18.3]} 23. Ra4 {[%clk 0:02:30.2]}
23... Kf8 {[%clk 0:01:27.5]} 24. Kf1 {[%clk 0:02:03.2]} 24... Re7 {[%clk
0:01:26]} 25. h4 {[%clk 0:02:00.9]} 25... h5 {[%clk 0:01:24.6]} 26. Rac4 {[%clk
0:01:54.3]} 26... g6 {[%clk 0:01:24.3]} 27. b4 {[%clk 0:01:49.9]} 27... Rd8
{[%clk 0:01:24.1]} 28. Rc8 {[%clk 0:01:48.3]} 28... Ke8 {[%clk 0:01:24.1]} 29.
R1c7 {[%clk 0:01:37]} 29... Rxc8 {[%clk 0:01:21]} 30. Rxc8+ {[%clk 0:01:36.8]}
30... Kd7 {[%clk 0:01:21.9]} 31. Rc4 {[%clk 0:01:27.7]} 31... Kd6 {[%clk
0:01:21.8]} 32. a3 {[%clk 0:01:26.5]} 32... Rc7 {[%clk 0:01:00.8]} 33. Rd4+
{[%clk 0:01:20.5]} 33... Kc6 {[%clk 0:01:00.6]} 34. a4 {[%clk 0:01:12.1]} 34...
Re7 {[%clk 0:00:41]} 35. Kg2 {[%clk 0:01:09]} 35... Re5 {[%clk 0:00:31.4]} 36.
Kf3 {[%clk 0:01:06.4]} 36... a5 {[%clk 0:00:21.5]} 37. b5+ {[%clk 0:00:49.9]}
37... Kc5 {[%clk 0:00:21.6]} 38. Rd7 {[%clk 0:00:50.4]} 38... Rf5+ {[%clk
0:00:21.6]} 39. Ke3 {[%clk 0:00:51]} 39... Kb4 {[%clk 0:00:16.4]} 40. Rd4+
{[%clk 0:00:49.1]} 40... Kb3 {[%clk 0:00:16.1]} 41. f3 {[%clk 0:00:45.3]} 41...
Rc5 {[%clk 0:00:14.8]} 42. g4 {[%clk 0:00:39.7]} 42... Rc4 {[%clk 0:00:07.3]}
43. Rd7 {[%clk 0:00:23.2]} 43... hxg4 {[%clk 0:00:06.3]} 44. Rxf7 {[%clk
0:00:18.9]} 44... gxf3 {[%clk 0:00:05.6]} 45. Kxf3 {[%clk 0:00:14.9]} 45... Kxa4
{[%clk 0:00:04]} 46. Rxb7 {[%clk 0:00:15.3]} 46... Rxh4 {[%clk 0:00:04.5]} 47.
Ke3 {[%clk 0:00:13.9]} 47... Rb4 {[%clk 0:00:04.7]} 48. Rg7 {[%clk 0:00:14.2]}
48... Rxb5 {[%clk 0:00:01.9]} 49. Rxg6 {[%clk 0:00:14.7]} 49... Rd5 {[%clk
0:00:02.6]} 50. Rb6 {[%clk 0:00:13.6]} 50... Ka3 {[%clk 0:00:02.8]} 51. Ke2
{[%clk 0:00:14.2]} 51... a4 {[%clk 0:00:03.3]} 52. Rb8 {[%clk 0:00:14.8]} 52...
Ka2 {[%clk 0:00:03.9]} 53. Rb7 {[%clk 0:00:15.3]} 53... a3 {[%clk 0:00:04.4]}
54. Rb8 {[%clk 0:00:16]} 54... Ka1 {[%clk 0:00:05]} 55. Rb7 {[%clk 0:00:16.7]}
55... a2 {[%clk 0:00:04.5]} 56. Rb8 {[%clk 0:00:17.3]} 56... Rh5 {[%clk
0:00:04.9]} 57. Kd2 {[%clk 0:00:16.1]} 57... Rh1 {[%clk 0:00:05.5]} 58. Kc2
{[%clk 0:00:16.5]} 58... Rh2+ {[%clk 0:00:05.9]} 59. Kc1 {[%clk 0:00:16.4]}
59... Rb2 {[%clk 0:00:06.3]} 60. Rxb2 {[%clk 0:00:16]} 1/2-1/2